[Event "ONJK-B 2019"]
[Site "Borne"]
[Date "2019.08.09"]
[Round "7.11"]
[White "Schoonhoven, Mark"]
[Black "Tiggelman, Laura"]
[Result "0-1"]
[ECO "B70"]
[WhiteElo "1275"]
[BlackElo "1436"]
[Annotator "NA RC"]
[PlyCount "58"]
[EventDate "2019.08.05"]
[EventType "swiss"]
[EventCountry "NED"]
[SourceTitle "playchess.com"]
[Source "ChessBase"]
[SourceQuality "1"]
[TimeControl "5400+30"]

1. e4 {[%emt 0:00:00]} c5 {[%emt 0:00:00]} 2. Nf3 {[%emt 0:00:00]} d6 {[%emt 0:00:00]} 3. d4 {[%emt 0:00:00]} cxd4 {[%emt 0:00:00]} 4. Nxd4 {[%emt 0:00:00]} Nf6 {[%emt 0:00:00]} 5. Nc3 {[%emt 0:00:00]} g6 {[%emt 0:00:00]} 6. Bd3 {[%emt 0:00:06]} Bg7 {[%emt 0:00:37]} 7. Bg5 {[%emt 0:00:11]} Nc6 {[%emt 0:00:22]} 8. Nde2 {[%emt 0:03:14]} O-O {[%emt 0:01:05]} 9. Qd2 {[%emt 0:00:26]} Ne5 {[%emt 0:10:52]} 10. Bb5 {[%emt 0:05:21]} a6 {[%emt 0:00:31]} 11. Ba4 {[%emt 0:00:06]} b5 {[%emt 0:00:30]} 12. Bb3 {[%emt 0:00:05]} Bd7 {[%emt 0:15:57]} 13. O-O {[%emt 0:03:03]} a5 {[%emt 0:14:43]} 14. f4 {[%emt 0:04:12]} Nc4 {[%emt 0:02:58]} 15. Bxc4 {[%emt 0:00:24]} bxc4 {[%emt 0:00:05]} 16. f5 {[%emt 0:03:47]} Qb6+ {[%emt 0:03:09]} 17. Be3 {[%emt 0:16:53]} Qb7 {[%emt 0:07:35]} 18. Ng3 {[%emt 0:07:48]} Bc6 {[%emt 0:11:55]} 19. Bg5 {[%emt 0:08:19]} Rfe8 {[%emt 0:07:41]} 20. Rf4 {[%emt 0:21:19]} Qb6+ {[%emt 0:04:09]} 21. Kh1 {[%emt 0:00:31]} Rab8 {[%emt 0:05:28]} 22. e5 {[%emt 0:11:24]} dxe5 {[%emt 0:01:11]} 23. Rxc4 {[%emt 0:00:33]} Qxb2 {[%emt 0:06:19]} 24. Re1 {[%emt 0:00:41]} Bb5 {[%emt 0:03:08]} 25. Rb1 {[%emt 0:03:27]} Qxb1+ {[%emt 0:00:20]} 26. Nxb1 {[%emt 0:00:05]} Bxc4 {[%emt 0:00:03]} 27. Nc3 {[%emt 0:00:27]} Red8 {[%emt 0:01:02]} 28. Qe1 {[%emt 0:01:26]} Rb7 {[%emt 0:03:43]} 29. Qxe5 {[%emt 0:04:35]} Rb1+ {[%emt 0:00:00]} 0-1

[Event "ONJK-B 2019"]
[Site "Borne"]
[Date "2019.08.09"]
[Round "7.12"]
[White "Winter, Ynse"]
[Black "Van Hille, Clara"]
[Result "0-1"]
[ECO "D58"]
[WhiteElo "1021"]
[BlackElo "1391"]
[Annotator "NA RC"]
[PlyCount "92"]
[EventDate "2019.08.05"]
[EventType "swiss"]
[EventCountry "NED"]
[SourceTitle "playchess.com"]
[Source "ChessBase"]
[SourceQuality "1"]
[TimeControl "5400+30"]

1. d4 {[%emt 0:00:00]} d5 {[%emt 0:00:00]} 2. c4 {[%emt 0:00:00]} e6 {[%emt 0:00:00]} 3. Nc3 {[%emt 0:00:00]} Be7 {[%emt 0:00:00]} 4. Nf3 {[%emt 0:00:00]} Nf6 {[%emt 0:00:00]} 5. Bg5 {[%emt 0:00:18]} h6 {[%emt 0:00:11]} 6. Bh4 {[%emt 0:00:05]} O-O {[%emt 0:00:18]} 7. e3 {[%emt 0:00:11]} b6 {[%emt 0:00:16]} 8. cxd5 {[%emt 0:02:17]} exd5 {[%emt 0:00:23]} 9. Bd3 {[%emt 0:02:14]} Be6 {[%emt 0:06:32]} 10. O-O {[%emt 0:05:04]} c5 {[%emt 0:03:02]} 11. Rc1 {[%emt 0:09:14]} Nc6 {[%emt 0:07:12]} 12. a3 {[%emt 0:04:12]} a6 {[%emt 0:03:10]} 13. Na4 {[%emt 0:14:13]} c4 {[%emt 0:06:42]} 14. Be2 {[%emt 0:01:10]} Rc8 {[%emt 0:07:54]} 15. Bxf6 {[%emt 0:04:52]} Bxf6 {[%emt 0:01:31]} 16. b3 {[%emt 0:03:11]} Na5 {[%emt 0:06:45]} 17. bxc4 {[%emt 0:02:02]} Nxc4 {[%emt 0:01:13]} 18. Qb3 {[%emt 0:04:41]} b5 {[%emt 0:02:26]} 19. Nc5 {[%emt 0:00:56]} Qa5 {[%emt 0:04:12]} 20. Nxe6 {[%emt 0:08:35]} fxe6 {[%emt 0:01:12]} 21. Bxc4 {[%emt 0:02:52]} bxc4 {[%emt 0:00:46]} 22. Qc3 {[%emt 0:02:45]} Qxc3 {[%emt 0:02:30]} 23. Rxc3 {[%emt 0:00:07]} Rb8 {[%emt 0:00:11]} 24. Nd2 {[%emt 0:01:24]} Rb2 {[%emt 0:01:39]} 25. Rd1 {[%emt 0:00:09]} Rfb8 {[%emt 0:00:26]} 26. Rcc1 {[%emt 0:00:56]} Be7 {[%emt 0:01:32]} 27. a4 {[%emt 0:00:28]} Ra2 {[%emt 0:02:11]} 28. Ra1 {[%emt 0:09:20]} Rbb2 {[%emt 0:00:40]} 29. Rxa2 {[%emt 0:00:08]} Rxa2 {[%emt 0:00:05]} 30. Nf3 {[%emt 0:00:14]} Rxa4 {[%emt 0:01:49]} 31. Kf1 {[%emt 0:00:32]} Bd6 {[%emt 0:01:01]} 32. h3 {[%emt 0:01:16]} Kf7 {[%emt 0:01:11]} 33. Ke2 {[%emt 0:01:22]} Ra2+ {[%emt 0:00:21]} 34. Rd2 {[%emt 0:00:17]} Rxd2+ {[%emt 0:00:19]} 35. Kxd2 {[%emt 0:00:03]} Bb4+ {[%emt 0:00:24]} 36. Kc2 {[%emt 0:00:28]} Ke7 {[%emt 0:00:58]} 37. Nd2 {[%emt 0:00:55]} Kd6 {[%emt 0:00:49]} 38. Nb1 {[%emt 0:00:47]} Kc6 {[%emt 0:00:44]} 39. Nc3 {[%emt 0:00:29]} Bxc3 {[%emt 0:00:20]} 40. Kxc3 {[%emt 0:00:06]} Kb5 {[%emt 0:00:03]} 41. f4 {[%emt 0:00:14]} g6 {[%emt 0:00:19]} 42. g4 {[%emt 0:00:11]} Kc6 {[%emt 0:01:29]} 43. h4 {[%emt 0:01:44]} Kd6 {[%emt 0:00:39]} 44. h5 {[%emt 0:00:35]} gxh5 {[%emt 0:00:29]} 45. g5 {[%emt 0:00:06]} hxg5 {[%emt 0:00:06]} 46. fxg5 {[%emt 0:00:06]} Ke7 {[%emt 0:00:06]} 0-1

[Event "ONJK-B 2019"]
[Site "Borne"]
[Date "2019.08.09"]
[Round "7.13"]
[White "Li-Behn, Tobias"]
[Black "Van Borren, Matthijs"]
[Result "1-0"]
[ECO "E90"]
[WhiteElo "1237"]
[BlackElo "1339"]
[Annotator "NA RC"]
[PlyCount "57"]
[EventDate "2019.08.05"]
[EventType "swiss"]
[EventCountry "NED"]
[SourceTitle "playchess.com"]
[Source "ChessBase"]
[SourceQuality "1"]
[TimeControl "5400+30"]

1. d4 {[%emt 0:00:00]} c5 {[%emt 0:01:06]} 2. d5 {[%emt 0:00:01]} Nf6 {[%emt 0:00:43]} 3. c4 {[%emt 0:00:13]} g6 {[%emt 0:00:21]} 4. Nc3 {[%emt 0:01:57]} Bg7 {[%emt 0:00:15]} 5. Nf3 {[%emt 0:00:59]} d6 {[%emt 0:01:19]} 6. e4 {[%emt 0:01:39]} a6 {[%emt 0:00:28]} 7. Be2 {[%emt 0:02:45]} Qc7 {[%emt 0:00:13]} 8. Qc2 {[%emt 0:02:33]} Bd7 {[%emt 0:01:32]} 9. O-O {[%emt 0:00:14]} O-O {[%emt 0:00:05]} 10. h3 {[%emt 0:00:36]} Be8 {[%emt 0:03:30]} 11. Bf4 {[%emt 0:01:38]} Nbd7 {[%emt 0:00:21]} 12. Qd2 {[%emt 0:02:03]} Rb8 {[%emt 0:02:12]} 13. Rfe1 {[%emt 0:05:37]} Nh5 {[%emt 0:08:34]} 14. Bh6 {[%emt 0:07:06]} Kh8 {[%emt 0:01:41]} 15. Bxg7+ {[%emt 0:05:10]} Kxg7 {[%emt 0:01:49]} 16. Ng5 {[%emt 0:00:13]} Nhf6 {[%emt 0:06:38]} 17. f4 {[%emt 0:02:30]} h6 {[%emt 0:02:24]} 18. Nf3 {[%emt 0:00:54]} Ng8 {[%emt 0:03:23]} 19. Bd3 {[%emt 0:03:51]} f6 {[%emt 0:03:46]} 20. Re2 {[%emt 0:08:32]} Bf7 {[%emt 0:00:57]} 21. Rae1 {[%emt 0:05:34]} e5 {[%emt 0:01:49]} 22. dxe6 {[%emt 0:02:50]} Bxe6 {[%emt 0:01:49]} 23. e5 {[%emt 0:02:50]} fxe5 {[%emt 0:02:59]} 24. fxe5 {[%emt 0:00:14]} Bf5 {[%emt 0:01:35]} 25. Bxf5 {[%emt 0:03:10]} Rxf5 {[%emt 0:00:35]} 26. Qxd6 {[%emt 0:01:27]} Qxd6 {[%emt 0:00:39]} 27. exd6 {[%emt 0:00:01]} b5 {[%emt 0:00:31]} 28. cxb5 {[%emt 0:04:57]} axb5 {[%emt 0:00:01]} 29. Ne5 {[%emt 0:00:19]} 1-0

[Event "ONJK-B 2019"]
[Site "Borne"]
[Date "2019.08.09"]
[Round "7.14"]
[White "Eijkelkamp, Hugo"]
[Black "Michielsen, Lies"]
[Result "1/2-1/2"]
[ECO "B30"]
[WhiteElo "825"]
[BlackElo "1489"]
[Annotator "NA RC"]
[PlyCount "70"]
[EventDate "2019.08.05"]
[EventType "swiss"]
[EventCountry "NED"]
[SourceTitle "playchess.com"]
[Source "ChessBase"]
[SourceQuality "1"]
[TimeControl "5400+30"]

1. e4 {[%emt 0:00:00]} c5 {[%emt 0:00:00]} 2. Nc3 {[%emt 0:00:00]} Nc6 {[%emt 0:00:04]} 3. Nf3 {[%emt 0:00:34]} g6 {[%emt 0:01:06]} 4. Bc4 {[%emt 0:03:21]} Bg7 {[%emt 0:02:47]} 5. d3 {[%emt 0:03:19]} Nf6 {[%emt 0:02:12]} 6. Bf4 {[%emt 0:04:36]} O-O {[%emt 0:05:02]} 7. O-O {[%emt 0:05:06]} d6 {[%emt 0:05:51]} 8. d4 {[%emt 0:05:08]} cxd4 {[%emt 0:01:08]} 9. Nxd4 {[%emt 0:00:35]} Nxd4 {[%emt 0:00:27]} 10. Qxd4 {[%emt 0:00:47]} e5 {[%emt 0:00:22]} 11. Bxe5 {[%emt 0:00:28]} dxe5 {[%emt 0:00:06]} 12. Qxe5 {[%emt 0:00:13]} Re8 {[%emt 0:01:44]} 13. Qf4 {[%emt 0:01:16]} Qe7 {[%emt 0:03:50]} 14. Rfe1 {[%emt 0:07:19]} Qe5 {[%emt 0:06:13]} 15. Qxe5 {[%emt 0:06:03]} Rxe5 {[%emt 0:00:08]} 16. f4 {[%emt 0:05:54]} Re7 {[%emt 0:06:14]} 17. e5 {[%emt 0:06:26]} Ne8 {[%emt 0:05:20]} 18. Nd5 {[%emt 0:02:14]} Rd7 {[%emt 0:01:41]} 19. e6 {[%emt 0:02:57]} fxe6 {[%emt 0:02:47]} 20. Rxe6 {[%emt 0:02:01]} Kf8 {[%emt 0:12:52]} 21. Rae1 {[%emt 0:04:52]} Nd6 {[%emt 0:04:28]} 22. Bb3 {[%emt 0:06:09]} b5 {[%emt 0:03:53]} 23. Nc7 {[%emt 0:01:53]} Rxc7 {[%emt 0:05:32]} 24. Rxd6 {[%emt 0:00:52]} Bf5 {[%emt 0:03:30]} 25. c3 {[%emt 0:02:10]} Re8 {[%emt 0:01:59]} 26. Red1 {[%emt 0:03:32]} Rce7 {[%emt 0:04:15]} 27. Kf2 {[%emt 0:03:33]} Re2+ {[%emt 0:00:33]} 28. Kf1 {[%emt 0:01:45]} Rxb2 {[%emt 0:01:04]} 29. Ra6 {[%emt 0:04:20]} Bxc3 {[%emt 0:02:06]} 30. Rxa7 {[%emt 0:00:53]} Bg4 {[%emt 0:02:47]} 31. Rf7+ {[%emt 0:01:53]} Kg8 {[%emt 0:00:24]} 32. Re7+ {[%emt 0:00:37]} Kf8 {[%emt 0:00:06]} 33. Rf7+ {[%emt 0:00:18]} Kg8 {[%emt 0:00:19]} 34. Re7+ {[%emt 0:00:11]} Kf8 {[%emt 0:00:16]} 35. Rf7+ {[%emt 0:00:08]} Kg8 {[%emt 0:00:05]} 1/2-1/2

[Event "ONJK-B 2019"]
[Site "Borne"]
[Date "2019.08.09"]
[Round "7.15"]
[White "Visser, Barto"]
[Black "Maas, Tristan"]
[Result "1-0"]
[ECO "C34"]
[WhiteElo "1342"]
[BlackElo "1467"]
[Annotator "NA RC"]
[PlyCount "63"]
[EventDate "2019.08.05"]
[EventType "swiss"]
[EventCountry "NED"]
[SourceTitle "playchess.com"]
[Source "ChessBase"]
[SourceQuality "1"]
[TimeControl "5400+30"]

1. e4 {[%emt 0:00:00]} e5 {[%emt 0:00:00]} 2. f4 {[%emt 0:00:00]} exf4 {[%emt 0:00:00]} 3. Nf3 {[%emt 0:00:07]} Nf6 {[%emt 0:00:30]} 4. Nc3 {[%emt 0:00:08]} Bc5 {[%emt 0:02:06]} 5. e5 {[%emt 0:03:18]} Ng4 {[%emt 0:06:35]} 6. d4 {[%emt 0:02:22]} Bb6 {[%emt 0:00:14]} 7. Bxf4 {[%emt 0:01:46]} f6 {[%emt 0:04:25]} 8. h3 {[%emt 0:02:02]} fxe5 {[%emt 0:00:32]} 9. Bg5 {[%emt 0:00:50]} Nf6 {[%emt 0:02:53]} 10. dxe5 {[%emt 0:00:33]} h6 {[%emt 0:01:58]} 11. Bh4 {[%emt 0:02:25]} g5 {[%emt 0:05:22]} 12. Nxg5 {[%emt 0:00:37]} Qe7 {[%emt 0:04:16]} 13. Nf3 {[%emt 0:01:34]} Qc5 {[%emt 0:01:33]} 14. exf6 {[%emt 0:02:28]} O-O {[%emt 0:00:42]} 15. Qd5+ {[%emt 0:00:47]} Kh8 {[%emt 0:02:18]} 16. Qxc5 {[%emt 0:00:59]} Bxc5 {[%emt 0:00:15]} 17. O-O-O {[%emt 0:00:53]} Be3+ {[%emt 0:00:14]} 18. Kb1 {[%emt 0:00:09]} Nc6 {[%emt 0:01:11]} 19. Bc4 {[%emt 0:00:54]} d6 {[%emt 0:00:42]} 20. f7 {[%emt 0:01:18]} Kg7 {[%emt 0:01:41]} 21. Rhf1 {[%emt 0:02:03]} Bf5 {[%emt 0:01:50]} 22. Nh2 {[%emt 0:01:34]} Bg6 {[%emt 0:00:09]} 23. Ng4 {[%emt 0:02:39]} Nd4 {[%emt 0:02:23]} 24. Bf6+ {[%emt 0:01:27]} Kh7 {[%emt 0:00:14]} 25. Bxd4 {[%emt 0:00:13]} Bxd4 {[%emt 0:00:01]} 26. Rxd4 {[%emt 0:00:18]} Rad8 {[%emt 0:00:33]} 27. Nf6+ {[%emt 0:03:31]} Kg7 {[%emt 0:00:49]} 28. Rg4 {[%emt 0:01:13]} c6 {[%emt 0:00:58]} 29. Nce4 {[%emt 0:01:01]} d5 {[%emt 0:00:19]} 30. Nh5+ {[%emt 0:00:09]} Kh8 {[%emt 0:01:06]} 31. Rxg6 {[%emt 0:00:21]} dxe4 {[%emt 0:00:26]} 32. Rxh6# {[%emt 0:00:11]} 1-0

[Event "ONJK-B 2019"]
[Site "Borne"]
[Date "2019.08.09"]
[Round "7.16"]
[White "Berghuis, Rowin"]
[Black "Pol, Florian"]
[Result "0-1"]
[ECO "B30"]
[WhiteElo "1081"]
[BlackElo "1334"]
[Annotator "NA RC"]
[PlyCount "62"]
[EventDate "2019.08.05"]
[EventType "swiss"]
[EventCountry "NED"]
[SourceTitle "playchess.com"]
[Source "ChessBase"]
[SourceQuality "1"]
[TimeControl "5400+30"]

1. e4 {[%emt 0:00:00]} c5 {[%emt 0:00:00]} 2. Bc4 {[%emt 0:00:00]} g6 {[%emt 0:00:34]} 3. Nf3 {[%emt 0:00:06]} Bg7 {[%emt 0:00:13]} 4. d3 {[%emt 0:00:38]} Nc6 {[%emt 0:00:16]} 5. O-O {[%emt 0:00:47]} e6 {[%emt 0:00:21]} 6. c3 {[%emt 0:00:48]} Nge7 {[%emt 0:00:39]} 7. d4 {[%emt 0:00:16]} cxd4 {[%emt 0:00:23]} 8. Nxd4 {[%emt 0:00:11]} O-O {[%emt 0:00:26]} 9. h3 {[%emt 0:01:14]} a6 {[%emt 0:00:12]} 10. Be3 {[%emt 0:01:19]} b5 {[%emt 0:03:17]} 11. Bb3 {[%emt 0:00:10]} Bb7 {[%emt 0:00:10]} 12. Nd2 {[%emt 0:00:59]} d5 {[%emt 0:05:40]} 13. Re1 {[%emt 0:01:56]} dxe4 {[%emt 0:00:54]} 14. Nxe4 {[%emt 0:00:38]} Nxd4 {[%emt 0:02:02]} 15. Nc5 {[%emt 0:01:12]} Nxb3 {[%emt 0:02:02]} 16. Nxb7 {[%emt 0:00:23]} Qc7 {[%emt 0:00:59]} 17. Qxb3 {[%emt 0:02:37]} Qxb7 {[%emt 0:00:23]} 18. Bc5 {[%emt 0:00:15]} Rfe8 {[%emt 0:01:48]} 19. Rad1 {[%emt 0:03:10]} Bf8 {[%emt 0:00:48]} 20. Qb4 {[%emt 0:01:18]} Nd5 {[%emt 0:00:39]} 21. Qd4 {[%emt 0:02:17]} Bxc5 {[%emt 0:01:06]} 22. Qxc5 {[%emt 0:00:11]} Rac8 {[%emt 0:00:59]} 23. Qd4 {[%emt 0:00:43]} Red8 {[%emt 0:01:45]} 24. Re2 {[%emt 0:02:12]} Qb6 {[%emt 0:00:07]} 25. Qe5 {[%emt 0:03:51]} Qc7 {[%emt 0:02:16]} 26. Qd4 {[%emt 0:00:47]} Nxc3 {[%emt 0:01:36]} 27. Rc2 {[%emt 0:03:26]} Rxd4 {[%emt 0:07:21]} 28. Rxd4 {[%emt 0:00:02]} Qe5 {[%emt 0:03:15]} 29. Rdd2 {[%emt 0:01:53]} Kg7 {[%emt 0:01:23]} 30. Kh1 {[%emt 0:00:49]} Nxa2 {[%emt 0:00:23]} 31. Re2 {[%emt 0:01:41]} Qb8 {[%emt 0:00:44]} 0-1

[Event "ONJK-B 2019"]
[Site "Borne"]
[Date "2019.08.09"]
[Round "8.1"]
[White "De Putter, Nina"]
[Black "Maters, Arthur"]
[Result "0-1"]
[ECO "B52"]
[WhiteElo "1631"]
[BlackElo "2041"]
[Annotator "NA"]
[PlyCount "90"]
[EventDate "2019.08.05"]
[EventType "swiss"]
[EventCountry "NED"]
[SourceTitle "playchess.com"]
[Source "ChessBase"]
[SourceQuality "1"]
[TimeControl "5400+30"]

1. e4 {[%emt 0:00:00]} c5 {[%emt 0:00:00]} 2. Nf3 {[%emt 0:00:00]} d6 {[%emt 0:00:00]} 3. Bb5+ {[%emt 0:00:00]} Bd7 {[%emt 0:01:42]} 4. Bxd7+ {[%emt 0:00:05]} Qxd7 {[%emt 0:00:06]} 5. c4 {[%emt 0:00:13]} Nc6 {[%emt 0:00:05]} 6. O-O {[%emt 0:00:32]} g6 {[%emt 0:00:56]} 7. d4 {[%emt 0:00:55]} cxd4 {[%emt 0:00:06]} 8. Nxd4 {[%emt 0:00:09]} Bg7 {[%emt 0:00:05]} 9. Be3 {[%emt 0:00:40]} Nf6 {[%emt 0:00:11]} 10. f3 {[%emt 0:00:38]} O-O {[%emt 0:00:35]} 11. Nc3 {[%emt 0:00:34]} Rac8 {[%emt 0:03:25]} 12. Rc1 {[%emt 0:07:40]} Nxd4 {[%emt 0:00:18]} 13. Qxd4 {[%emt 0:00:19]} Ng4 {[%emt 0:00:47]} 14. Qd3 {[%emt 0:02:42]} Nxe3 {[%emt 0:01:56]} 15. Qxe3 {[%emt 0:01:43]} Rxc4 {[%emt 0:00:01]} 16. Kh1 {[%emt 0:00:58]} a6 {[%emt 0:00:35]} 17. Rfd1 {[%emt 0:05:53]} Rfc8 {[%emt 0:02:03]} 18. e5 {[%emt 0:10:20]} Qe6 {[%emt 0:00:22]} 19. f4 {[%emt 0:12:54]} dxe5 {[%emt 0:00:29]} 20. fxe5 {[%emt 0:01:02]} Qxe5 {[%emt 0:00:13]} 21. Qxe5 {[%emt 0:00:19]} Bxe5 {[%emt 0:00:07]} 22. Rd3 {[%emt 0:00:29]} b5 {[%emt 0:00:15]} 23. a3 {[%emt 0:00:32]} a5 {[%emt 0:00:06]} 24. Rcd1 {[%emt 0:00:53]} Bxc3 {[%emt 0:00:09]} 25. bxc3 {[%emt 0:00:07]} Rxc3 {[%emt 0:00:04]} 26. Rxc3 {[%emt 0:00:40]} Rxc3 {[%emt 0:00:04]} 27. Ra1 {[%emt 0:00:21]} b4 {[%emt 0:00:14]} 28. axb4 {[%emt 0:00:09]} axb4 {[%emt 0:00:05]} 29. h3 {[%emt 0:00:09]} b3 {[%emt 0:00:04]} 30. Kh2 {[%emt 0:00:13]} b2 {[%emt 0:00:07]} 31. Rb1 {[%emt 0:00:03]} Rc2 {[%emt 0:00:05]} 32. Kg3 {[%emt 0:00:14]} Kg7 {[%emt 0:00:06]} 33. Kf3 {[%emt 0:00:15]} h5 {[%emt 0:00:05]} 34. g3 {[%emt 0:00:19]} g5 {[%emt 0:00:13]} 35. Ke3 {[%emt 0:00:06]} Rh2 {[%emt 0:00:04]} 36. Kf3 {[%emt 0:00:16]} f5 {[%emt 0:00:23]} 37. Ke3 {[%emt 0:00:14]} Rxh3 {[%emt 0:00:05]} 38. Rxb2 {[%emt 0:00:15]} Rxg3+ {[%emt 0:00:05]} 39. Kf2 {[%emt 0:00:12]} h4 {[%emt 0:00:15]} 40. Rb1 {[%emt 0:00:10]} g4 {[%emt 0:00:06]} 41. Re1 {[%emt 0:00:18]} Kf6 {[%emt 0:00:05]} 42. Re2 {[%emt 0:00:18]} e5 {[%emt 0:00:11]} 43. Re1 {[%emt 0:00:09]} f4 {[%emt 0:00:06]} 44. Ra1 {[%emt 0:00:10]} Rb3 {[%emt 0:00:08]} 45. Ra6+ {[%emt 0:00:11]} Kf5 {[%emt 0:00:07]} 0-1

[Event "ONJK-B 2019"]
[Site "Borne"]
[Date "2019.08.09"]
[Round "8.2"]
[White "Rogge, Parcival"]
[Black "Arnold, Kiri"]
[Result "1/2-1/2"]
[ECO "B22"]
[WhiteElo "1743"]
[BlackElo "1555"]
[Annotator "NA"]
[PlyCount "59"]
[EventDate "2019.08.05"]
[EventType "swiss"]
[EventCountry "NED"]
[SourceTitle "playchess.com"]
[Source "ChessBase"]
[SourceQuality "1"]
[TimeControl "5400+30"]

1. e4 {[%emt 0:00:00]} c5 {[%emt 0:00:08]} 2. Nf3 {[%emt 0:00:00]} Nc6 {[%emt 0:00:11]} 3. c3 {[%emt 0:00:00]} e5 {[%emt 0:00:22]} 4. Bc4 {[%emt 0:00:40]} Be7 {[%emt 0:07:27]} 5. O-O {[%emt 0:10:08]} Nf6 {[%emt 0:10:41]} 6. Re1 {[%emt 0:00:28]} O-O {[%emt 0:00:58]} 7. d4 {[%emt 0:00:25]} cxd4 {[%emt 0:02:31]} 8. cxd4 {[%emt 0:00:12]} d6 {[%emt 0:01:38]} 9. h3 {[%emt 0:02:06]} Qb6 {[%emt 0:02:00]} 10. d5 {[%emt 0:14:46]} Nb8 {[%emt 0:00:43]} 11. Qe2 {[%emt 0:00:55]} Nbd7 {[%emt 0:01:03]} 12. Nc3 {[%emt 0:02:28]} Nc5 {[%emt 0:03:19]} 13. Rb1 {[%emt 0:00:42]} Bd7 {[%emt 0:03:49]} 14. Be3 {[%emt 0:02:00]} Qc7 {[%emt 0:04:33]} 15. Nd2 {[%emt 0:02:54]} a6 {[%emt 0:03:09]} 16. b4 {[%emt 0:00:42]} Na4 {[%emt 0:00:34]} 17. Nxa4 {[%emt 0:03:18]} Bxa4 {[%emt 0:00:02]} 18. f4 {[%emt 0:01:38]} Qd7 {[%emt 0:06:02]} 19. f5 {[%emt 0:02:50]} Bc2 {[%emt 0:02:14]} 20. g4 {[%emt 0:06:05]} Bxe4 {[%emt 0:08:10]} 21. Nxe4 {[%emt 0:01:31]} Nxe4 {[%emt 0:00:30]} 22. Qf3 {[%emt 0:02:05]} Ng5 {[%emt 0:03:25]} 23. Qg3 {[%emt 0:00:39]} Rac8 {[%emt 0:01:25]} 24. Bd3 {[%emt 0:01:10]} Rc3 {[%emt 0:01:02]} 25. Bd2 {[%emt 0:00:51]} Rxd3 {[%emt 0:01:50]} 26. Qxd3 {[%emt 0:00:07]} e4 {[%emt 0:00:03]} 27. Rxe4 {[%emt 0:00:23]} Nxe4 {[%emt 0:00:02]} 28. Qxe4 {[%emt 0:00:08]} Bf6 {[%emt 0:00:27]} 29. Re1 {[%emt 0:01:17]} Be5 {[%emt 0:02:42]} 30. Bf4 {[%emt 0:01:57]} 1/2-1/2

[Event "ONJK-B 2019"]
[Site "Borne"]
[Date "2019.08.09"]
[Round "8.3"]
[White "Molanus, Lennart"]
[Black "Mainka, Alwin"]
[Result "0-1"]
[ECO "D93"]
[WhiteElo "1619"]
[BlackElo "1989"]
[Annotator "NA"]
[PlyCount "106"]
[EventDate "2019.08.05"]
[EventType "swiss"]
[EventCountry "NED"]
[SourceTitle "playchess.com"]
[Source "ChessBase"]
[SourceQuality "1"]
[TimeControl "5400+30"]

1. d4 {[%emt 0:00:00]} Nf6 {[%emt 0:00:00]} 2. c4 {[%emt 0:00:00]} g6 {[%emt 0:00:00]} 3. Nc3 {[%emt 0:00:00]} d5 {[%emt 0:00:00]} 4. Bf4 {[%emt 0:00:00]} Bg7 {[%emt 0:00:01]} 5. e3 {[%emt 0:00:00]} O-O {[%emt 0:00:19]} 6. Nf3 {[%emt 0:00:00]} Bf5 {[%emt 0:00:31]} 7. h3 {[%emt 0:04:38]} dxc4 {[%emt 0:01:08]} 8. Bxc4 {[%emt 0:00:33]} c6 {[%emt 0:00:14]} 9. O-O {[%emt 0:03:35]} Nbd7 {[%emt 0:01:33]} 10. Qe2 {[%emt 0:02:41]} Nb6 {[%emt 0:01:31]} 11. Bd3 {[%emt 0:03:13]} Bxd3 {[%emt 0:00:43]} 12. Qxd3 {[%emt 0:00:16]} Nfd5 {[%emt 0:03:07]} 13. Be5 {[%emt 0:04:09]} Bxe5 {[%emt 0:04:15]} 14. Nxe5 {[%emt 0:02:15]} Nxc3 {[%emt 0:00:48]} 15. bxc3 {[%emt 0:08:13]} Rc8 {[%emt 0:00:14]} 16. a4 {[%emt 0:02:00]} Nd7 {[%emt 0:01:23]} 17. Nxd7 {[%emt 0:05:48]} Qxd7 {[%emt 0:00:11]} 18. a5 {[%emt 0:01:07]} Rfd8 {[%emt 0:00:53]} 19. f4 {[%emt 0:05:44]} c5 {[%emt 0:02:25]} 20. Rfb1 {[%emt 0:05:51]} cxd4 {[%emt 0:01:33]} 21. cxd4 {[%emt 0:00:11]} Rc7 {[%emt 0:00:10]} 22. Ra3 {[%emt 0:02:51]} Qd5 {[%emt 0:06:18]} 23. Rb5 {[%emt 0:08:02]} Rc1+ {[%emt 0:01:47]} 24. Kh2 {[%emt 0:00:32]} Qc6 {[%emt 0:00:52]} 25. Rab3 {[%emt 0:01:57]} Rd7 {[%emt 0:02:27]} 26. d5 {[%emt 0:02:47]} Qc8 {[%emt 0:00:08]} 27. e4 {[%emt 0:00:42]} a6 {[%emt 0:03:18]} 28. Rb6 {[%emt 0:02:32]} Rc5 {[%emt 0:07:52]} 29. Qd2 {[%emt 0:02:06]} Rdc7 {[%emt 0:01:38]} 30. e5 {[%emt 0:03:10]} Rc2 {[%emt 0:00:10]} 31. Qd3 {[%emt 0:00:22]} Ra2 {[%emt 0:05:53]} 32. d6 {[%emt 0:03:30]} Rcc2 {[%emt 0:00:07]} 33. Rb2 {[%emt 0:03:08]} exd6 {[%emt 0:05:13]} 34. Rxa2 {[%emt 0:00:19]} Rxa2 {[%emt 0:00:08]} 35. exd6 {[%emt 0:00:13]} Qd7 {[%emt 0:01:40]} 36. Qd5 {[%emt 0:00:36]} Qa4 {[%emt 0:00:44]} 37. Qe5 {[%emt 0:01:58]} Qc2 {[%emt 0:00:27]} 38. Qe8+ {[%emt 0:02:04]} Kg7 {[%emt 0:00:32]} 39. Qe5+ {[%emt 0:00:01]} Kg8 {[%emt 0:00:41]} 40. Qg5 {[%emt 0:00:14]} Qd2 {[%emt 0:01:10]} 41. h4 {[%emt 0:04:22]} Rxa5 {[%emt 0:02:57]} 42. Qg4 {[%emt 0:11:08]} Rd5 {[%emt 0:00:41]} 43. Rxb7 {[%emt 0:01:39]} Rxd6 {[%emt 0:00:07]} 44. Ra7 {[%emt 0:00:59]} Rf6 {[%emt 0:03:54]} 45. h5 {[%emt 0:01:20]} Kg7 {[%emt 0:03:29]} 46. Qg5 {[%emt 0:01:16]} h6 {[%emt 0:00:46]} 47. Qe5 {[%emt 0:00:33]} gxh5 {[%emt 0:00:24]} 48. Qxh5 {[%emt 0:01:08]} Qxf4+ {[%emt 0:00:16]} 49. Kh1 {[%emt 0:00:15]} Qg3 {[%emt 0:00:39]} 50. Qd1 {[%emt 0:00:41]} Qh4+ {[%emt 0:00:13]} 51. Kg1 {[%emt 0:00:15]} Qf2+ {[%emt 0:00:04]} 52. Kh1 {[%emt 0:00:15]} Qxa7 {[%emt 0:00:06]} 53. Qg4+ {[%emt 0:00:03]} Rg6 {[%emt 0:00:11]} 0-1